bitfinex/quotes_SOLUSD_20250609
["timestamp","ask_amount","ask_price","bid_price","bid_amount"]
[1749439564976,8.06835797,151.16,151.14,0.14216157]
[1749439565276,8.06835797,151.15,151.14,0.14216157]
[1749439566956,6.61463156,151.18,151.12,0.14216157]
[1749439567283,8.06835797,151.14,151.13,26.0]
[1749439567673,8.06835797,151.14,151.13,26.14216157]
[1749439569176,8.06835797,151.15,151.13,26.14216157]
[1749439572288,8.06835797,151.15,151.13,0.14216157]
[1749439575890,6.61513888,151.17,151.13,0.14216157]
[1749439576091,8.06835797,151.15,151.13,0.14216157]
[1749439577491,8.06835797,151.16,151.13,6.75896314]
[1749439578373,8.06835797,151.16,151.13,0.14216157]
[1749439578774,4.89831718,151.18,151.14,0.14216157]
[1749439579084,8.06835797,151.17,151.14,0.14216157]
[1749439579590,8.06835797,151.17,151.14,6.7583094]
[1749439582404,8.06835797,151.17,151.14,0.14216157]
[1749439582701,8.06835797,151.16,151.14,0.14216157]
[1749439583572,47.17426961,151.19,151.14,6.75853791]
[1749439583793,8.06835797,151.17,151.14,6.75853791]
[1749439586174,8.06835797,151.15,151.11,6.61769571]
[1749439586380,8.06835797,151.15,151.12,0.14216157]
[1749439589300,8.06835797,151.14,151.12,0.14216157]
[1749439590108,8.06835797,151.15,151.11,0.14216157]
[1749439590400,8.06835797,151.14,151.11,0.14216157]
[1749439590600,8.06835797,151.13,151.11,0.14216157]
[1749439590824,8.06835797,151.12,151.07,2.458436]
[1749439591112,8.06835797,151.09,151.07,0.912936]
[1749439591985,8.06835797,151.09,151.08,0.14216157]
[1749439592714,8.06835797,151.1,151.08,0.14216157]
[1749439593118,11.51264944,151.13,151.08,0.14216157]
[1749439593416,8.06835797,151.12,151.08,8.21051954]
[1749439593631,8.06835797,151.12,151.08,0.14216157]
[1749439594909,8.06835797,151.11,151.08,0.14216157]
[1749439596719,8.06835797,151.1,151.08,0.14216157]
[1749439597111,8.06835797,151.09,151.07,0.912936]
[1749439597294,8.06835797,151.08,151.07,0.912936]
[1749439598901,14.68736776,151.08,151.07,0.912936]
[1749439599100,8.06835797,151.08,151.07,0.912936]
[1749439599414,12.62842,151.08,151.07,0.912936]
[1749439599598,12.62842,151.09,151.08,0.14216157]
[1749439599803,63.70842,151.1,151.08,0.14216157]
[1749439600016,53.18842,151.1,151.08,0.14216157]
[1749439600323,12.62842,151.09,151.08,0.14216157]
[1749439604006,1.5995,151.12,151.08,0.14216157]
[1749439604227,12.62842,151.09,151.08,0.14216157]
[1749439605827,12.62842,151.1,151.08,0.14216157]
[1749439606021,12.62842,151.09,151.08,0.14216157]
[1749439607529,12.62842,151.1,151.08,0.14216157]
[1749439609422,12.62842,151.12,151.08,0.14216157]
[1749439610108,12.62842,151.12,151.08,19.38942339]
[1749439611911,12.62842,151.12,151.08,6.76100339]
[1749439614141,12.62842,151.12,151.08,19.38942339]
[1749439616750,12.62842,151.11,151.07,0.912936]
[1749439616955,12.62842,151.08,151.07,0.912936]
[1749439617612,12.62842,151.08,151.07,1.05509757]
[1749439618434,12.62842,151.09,151.08,0.14216157]
[1749439619028,19.24706058,151.09,151.07,0.912936]
[1749439619335,12.62842,151.08,151.07,1.05509757]
[1749439619939,19.24706058,151.09,151.07,1.05509757]
[1749439621844,19.24742979,151.08,151.07,0.912936]
[1749439622042,37.89707865,151.08,151.07,0.912936]
[1749439623543,43.07456676,151.08,151.07,0.912936]
[1749439623761,43.07456676,151.08,150.98,2.74302556]
[1749439623762,18.64964886,151.04,150.98,2.74302556]
[1749439623919,6.62056641,151.05,150.99,12.62842]
[1749439624121,12.62842,151.06,151.03,0.14216157]
[1749439624651,12.62842,151.05,151.03,0.14216157]
[1749439624847,12.62842,151.04,151.03,0.14216157]
[1749439625023,12.62842,151.04,151.0,11.77058157]
[1749439625355,12.62842,151.02,150.98,2.74302556]
[1749439625547,12.62842,151.02,150.98,15.37144556]
[1749439625921,12.62842,151.02,150.99,2.46848929]
[1749439626119,12.62842,151.02,150.98,2.74302556]
[1749439626352,18.64964886,151.01,150.98,2.74302556]
[1749439626523,12.62842,150.99,150.98,2.74302556]
[1749439627220,6.62280972,151.0,150.98,2.74302556]
[1749439627566,12.62842,151.0,150.98,2.74302556]
[1749439627731,12.62842,151.01,150.98,2.74302556]
[1749439628044,6.62169778,151.02,150.99,0.14216157]
[1749439628235,57.76152317,151.03,150.99,0.14216157]
[1749439628552,12.62842,151.01,150.99,0.14216157]
[1749439629646,12.62842,151.02,150.99,0.14216157]
[1749439630470,12.62842,151.01,150.99,0.14216157]
[1749439631351,19.25017694,151.02,150.99,0.14216157]
[1749439631756,6.62175694,151.02,150.99,0.14216157]
[1749439631945,19.25017694,151.02,150.99,0.14216157]
[1749439633071,12.62842,151.02,150.99,0.14216157]
[1749439634192,12.62842,151.01,150.99,0.14216157]
[1749439635166,19.25049823,151.01,150.99,0.14216157]
[1749439636678,12.62842,151.0,150.98,2.74302556]
[1749439636972,19.25137516,150.99,150.98,2.74302556]
[1749439638170,37.90102402,150.99,150.98,2.74302556]
[1749439638863,39.55658559,150.99,150.98,2.74302556]
[1749439639650,39.41442402,150.99,150.98,2.74302556]
[1749439641453,31.27806886,150.99,150.98,2.74302556]
[1749439643163,38.04318559,150.99,150.98,2.74302556]
[1749439643360,12.62842,150.99,150.98,2.74302556]
[1749439644471,77.14,151.0,150.98,2.74302556]
[1749439644668,23.16842,151.0,150.98,2.74302556]
[1749439645969,10.54,151.0,150.98,2.74302556]
[1749439646170,10.54,151.0,150.98,9.36639836]
[1749439646577,10.54,151.0,150.98,2.74302556]
[1749439646954,12.62842,151.02,150.99,0.14216157]
[1749439650360,19.25018293,151.02,150.99,0.14216157]
[1749439653691,12.62842,151.01,150.99,0.14216157]
[1749439654389,12.62842,151.01,150.98,2.74302556]
[1749439655288,12.62842,151.0,150.98,2.74302556]
[1749439656094,19.25096324,151.0,150.98,2.74302556]
[1749439656285,108.56023043,150.99,150.98,2.74302556]
[1749439657884,115.18318559,150.99,150.98,2.74302556]
[1749439660590,120.06071688,150.99,150.98,2.74302556]
[1749439661072,115.18318559,150.99,150.98,2.74302556]
[1749439661274,102.41260402,150.99,150.98,2.74302556]
[1749439661487,115.14102402,150.99,150.98,2.74302556]
[1749439664079,120.0244683,150.99,150.98,2.74302556]
[1749439664790,79.3244683,150.99,150.98,2.74302556]
[1749439664977,74.44102402,150.99,150.98,2.74302556]
[1749439667907,79.33084804,150.99,150.98,2.74302556]
[1749439670212,79.33642267,150.99,150.98,2.74302556]
[1749439670401,43.16295516,150.99,150.98,2.74302556]
[1749439670826,6.62261939,151.0,150.98,2.88518713]
[1749439671115,31.27806886,151.02,150.99,12.77058157]
[1749439671116,4.89624881,151.02,150.99,12.77058157]
[1749439671747,6.62182705,151.02,150.99,12.77058157]
[1749439674812,6.62182705,151.02,151.0,2.47388801]
[1749439674995,6.62182705,151.02,150.99,12.77058157]
[1749439675196,6.62182705,151.02,151.0,2.47392543]
[1749439675519,6.62182705,151.02,150.99,12.77058157]
[1749439677225,11.51876172,151.02,150.99,12.77058157]
[1749439677442,11.51876172,151.02,150.99,0.14216157]
[1749439677739,6.62182705,151.02,150.99,0.14216157]
[1749439678223,6.62182705,151.02,150.99,12.77058157]
[1749439678904,6.62182705,151.02,151.0,2.47442239]
[1749439679101,6.62182705,151.02,150.99,12.77058157]
[1749439679634,11.51876172,151.02,150.99,12.77058157]
[1749439679940,6.62182705,151.02,151.0,2.47448412]
[1749439680111,6.62182705,151.02,150.99,12.77058157]
[1749439680310,6.62182705,151.02,151.0,2.47447531]
[1749439680510,6.62182705,151.02,150.99,12.77058157]
[1749439681019,6.62182705,151.02,151.0,2.47447531]
[1749439681318,6.62182705,151.02,150.99,12.77058157]
[1749439681716,17.20126992,151.03,151.01,0.14216157]
[1749439682522,6.62126992,151.03,151.01,0.14216157]
[1749439682838,6.6209243,151.04,151.01,12.77058157]
[1749439683208,11.52046846,151.04,151.01,12.77058157]
[1749439683528,30.16968258,151.05,151.02,12.62842]
[1749439684614,25.27013842,151.05,151.02,12.62842]
[1749439684824,42.79694478,151.05,151.01,12.77058157]
[1749439686826,30.16852478,151.05,151.01,12.77058157]
[1749439687026,42.79694478,151.05,151.01,12.77058157]
[1749439688035,6.62120108,151.03,150.98,2.74302556]
[1749439688220,12.62842,151.02,150.99,2.61604925]
[1749439688423,17.52680636,151.02,150.99,0.14216157]
[1749439690639,6.622078,151.01,150.99,0.14216157]
[1749439694040,19.250498,151.01,150.98,2.74302556]
[1749439694308,12.62842,150.99,150.98,2.74302556]
[1749439694421,36.17645522,150.99,150.98,2.74302556]
[1749439694742,46.71645522,150.99,150.98,2.74302556]
[1749439695647,53.33941038,150.99,150.98,2.74302556]
[1749439696138,53.62373352,150.99,150.98,2.74302556]
[1749439697233,55.12613352,150.99,150.98,2.74302556]
[1749439698957,54.98397195,150.99,150.98,2.74302556]
[1749439699162,54.84181038,150.99,150.98,2.74302556]
[1749439699537,30.17099038,150.99,150.98,2.74302556]
[1749439699738,37.90102402,150.99,150.98,2.74302556]
[1749439700035,78.54102402,150.99,150.98,2.74302556]
[1749439700454,104.54102402,150.99,150.98,2.74302556]
[1749439700963,109.43162049,150.99,150.98,2.74302556]
[1749439702841,104.54102402,150.99,150.98,2.74302556]
[1749439704668,109.43157474,150.99,150.98,2.74302556]
[1749439706154,96.80315474,150.99,150.98,2.74302556]
[1749439706475,109.43157474,150.99,150.98,2.74302556]
[1749439715081,96.80315474,150.99,150.98,2.74302556]
[1749439715275,109.43157474,150.99,150.98,2.74302556]
[1749439715591,104.54102402,150.99,150.98,2.74302556]
[1749439717472,10.54,151.0,150.98,2.74302556]
[1749439717473,17.16257636,151.0,150.98,2.74302556]
[1749439719570,29.79099636,151.0,150.98,2.74302556]
[1749439723367,17.16257636,151.0,150.98,2.74302556]
[1749439724387,29.79099636,151.0,150.98,2.74302556]
[1749439724982,17.16257636,151.0,150.98,2.74302556]
[1749439725887,29.79099636,151.0,150.98,2.74302556]
[1749439729582,34.68269161,151.0,150.98,2.74302556]
[1749439729783,29.79099636,151.0,150.98,2.74302556]
[1749439729983,34.68269161,151.0,150.98,2.74302556]
[1749439730285,29.79099636,151.0,150.98,2.74302556]
[1749439730490,34.68269161,151.0,150.98,2.74302556]
[1749439730688,29.79099636,151.0,150.98,2.74302556]
[1749439730887,34.68269161,151.0,150.98,2.74302556]
[1749439731086,29.79099636,151.0,150.98,2.74302556]
[1749439731289,34.68269161,151.0,150.98,2.74302556]
[1749439731493,29.79099636,151.0,150.98,2.74302556]
[1749439731787,34.68269161,151.0,150.98,2.74302556]
[1749439731990,29.79099636,151.0,150.98,2.74302556]
[1749439732292,24.14269161,151.0,150.98,2.74302556]
[1749439732501,19.25099636,151.0,150.98,2.74302556]
[1749439734378,6.62257636,151.0,150.98,2.74302556]
[1749439736978,11.52614096,150.99,150.98,2.74302556]
[1749439737178,6.62295516,150.99,150.98,5.22209543]
[1749439737391,11.52614096,150.99,150.98,5.22209543]
[1749439737585,6.62295516,150.99,150.98,5.22209543]
[1749439737880,6.62295516,150.99,150.98,5.22210242]
[1749439738106,6.62295516,150.99,150.98,2.74302556]
[1749439738407,6.62295516,150.99,150.98,5.22205772]
[1749439738783,6.62251655,151.0,150.98,5.22205772]
[1749439739098,6.62251655,151.0,150.98,2.74302556]
[1749439742021,6.62251655,151.0,150.99,2.47924041]
[1749439742213,11.52805344,151.0,150.99,2.47924041]
[1749439742589,11.52805344,151.0,150.99,2.47924011]
[1749439743012,11.52805344,151.0,150.98,2.74302556]
[1749439743184,6.62251655,151.0,150.98,2.74302556]
[1749439743393,6.62251655,151.0,150.99,2.47924004]
[1749439743618,11.52953841,151.0,150.98,2.74302556]
[1749439743904,4.90702186,150.99,150.98,2.74302556]
[1749439744111,4.90690673,150.99,150.98,5.36442346]
[1749439744289,4.90707133,151.0,150.98,13.45428592]
[1749439744489,6.62210582,151.01,150.99,2.47923633]
[1749439744698,4.90750462,151.0,150.98,10.97504959]
[1749439744888,6.62210582,151.01,150.98,10.97504959]
[1749439745088,4.90725752,151.0,150.99,2.47907805]
[1749439745305,4.90725752,151.0,150.98,10.97504959]
[1749439745511,6.62210582,151.01,150.99,2.47893397]
[1749439745712,4.90716411,151.0,150.98,10.97504959]
[1749439745926,17.16182262,151.02,150.99,10.56880313]
[1749439746217,17.16182262,151.02,150.98,2.88518713]
[1749439746218,4.90726677,151.01,151.0,10.56880313]
[1749439746387,4.90726677,151.01,150.99,8.08986246]
[1749439746595,17.16182262,151.02,150.99,8.08986246]
[1749439746828,4.90691157,151.01,151.0,2.47827677]
[1749439747219,4.90691157,151.01,150.99,8.08986246]
[1749439747393,17.16182262,151.02,150.99,8.08986246]
[1749439747594,4.90698637,151.01,151.0,2.47827186]
[1749439747916,4.90698637,151.01,150.99,8.08986246]
[1749439748085,17.16182262,151.02,151.0,2.47826923]
[1749439748285,4.90662839,151.01,150.99,8.08986246]
[1749439748501,17.16182262,151.02,151.0,2.47826862]
[1749439748698,4.90623076,151.01,150.99,0.14216157]
[1749439749020,41.09255158,151.09,151.02,0.14216157]
[1749439749204,4.90806487,151.08,151.07,8.08986246]
[1749439749591,4.90806487,151.08,151.07,8.23202403]
[1749439749795,41.09255158,151.09,151.08,0.14216157]
[1749439750121,41.09255158,151.09,151.08,10.70908305]
[1749439750306,4.90418887,151.12,151.08,9.89272403]
[1749439750511,4.90418887,151.13,151.11,8.23202403]
[1749439750818,6.6165058,151.14,151.12,8.08986246]
[1749439751021,11.52069467,151.14,151.12,8.08986246]
[1749439751217,11.52069467,151.14,151.12,12.61456779]
[1749439751615,11.52069467,151.14,151.09,0.14216157]
[1749439751816,6.6165058,151.14,151.1,12.61456779]
[1749439752309,18.64964886,151.13,151.1,12.61456779]
[1749439753410,23.1574612,151.14,151.11,12.61456779]
[1749439754207,6.6165058,151.14,151.12,12.61456779]
[1749439754593,6.6165058,151.14,151.11,12.61456779]
[1749439755420,6.6165058,151.14,151.12,12.61456779]
[1749439755625,25.26559328,151.15,151.12,12.61456779]
[1749439755830,6.61594442,151.15,151.12,12.61456779]
[1749439756003,6.61594442,151.15,151.13,12.61456779]
[1749439756196,26.0,151.16,151.13,12.61456779]
[1749439756197,23.15456779,151.17,151.13,12.61456779]
[1749439756406,6.61552293,151.16,151.14,12.61456779]
[1749439757437,6.61506912,151.17,151.14,12.61456779]
[1749439757904,6.61506912,151.17,151.15,12.61456779]
[1749439759620,6.61506912,151.17,151.13,0.14216157]
[1749439759832,6.61506912,151.17,151.15,12.61456779]
[1749439761216,6.61506912,151.17,151.12,0.14216157]
[1749439761416,6.61506912,151.17,151.15,12.61456779]
[1749439761618,6.61506912,151.17,151.15,12.75672936]
[1749439762010,29.14983178,151.2,151.16,12.61456779]
[1749439762011,6.61419406,151.19,151.16,12.61456779]
[1749439762211,6.61419406,151.19,151.17,12.61456779]
[1749439763108,10.61016002,151.22,151.15,0.14216157]
[1749439763309,25.26220967,151.23,151.21,12.61456779]
[1749439763518,6.61211946,151.24,151.22,12.61456779]
[1749439763834,6.61211946,151.24,151.18,6.75669873]
[1749439764129,6.61211946,151.24,151.18,0.14216157]
[1749439764424,6.61211946,151.24,151.21,12.61456779]
[1749439765727,39.66303768,151.26,151.21,12.61456779]
[1749439765728,25.2612191,151.25,151.21,12.61456779]
[1749439766724,25.2612191,151.25,151.18,0.14216157]
[1749439766725,12.61456779,151.27,151.22,0.14216157]
[1749439766924,12.61456779,151.25,151.22,0.14216157]
[1749439767235,12.61456779,151.25,151.2,12.61456779]
[1749439767416,12.61456779,151.24,151.19,12.75672936]
[1749439767617,12.61456779,151.23,151.19,12.75672936]
[1749439768120,31.26421665,151.24,151.2,12.61456779]
[1749439768435,6.61157024,151.25,151.21,12.61456779]
[1749439769113,19.22613803,151.25,151.21,12.61456779]
[1749439769306,31.26421665,151.24,151.2,0.14216157]
[1749439769507,6.61244462,151.23,151.2,12.75672936]
[1749439770913,6.61244462,151.23,151.2,0.14216157]
[1749439771127,6.61244462,151.23,151.2,12.75672936]
[1749439772022,12.61456779,151.22,151.19,0.14216157]
[1749439772228,12.61456779,151.22,151.18,14.28086779]
[1749439772444,12.61456779,151.21,151.16,12.61456779]
[1749439772610,12.61456779,151.21,151.14,12.1074]
[1749439772808,12.61456779,151.21,151.17,12.61456779]
[1749439773715,6.61375661,151.2,151.17,12.61456779]
[1749439775043,19.2283244,151.2,151.16,12.75672936]
[1749439779223,19.2283244,151.2,151.16,0.14216157]
[1749439779544,19.2283244,151.2,151.16,12.75672936]
[1749439779723,6.61375661,151.2,151.16,12.75672936]
[1749439780135,6.61375661,151.2,151.17,12.61456779]
[1749439788529,18.64964886,151.19,151.16,12.61456779]
[1749439788775,18.64964886,151.19,151.15,12.61456779]
[1749439788936,31.26421665,151.19,151.15,12.61456779]
[1749439789840,18.64964886,151.17,151.14,12.61456779]
[1749439790354,6.61550674,151.16,151.14,12.61456779]
[1749439791956,6.61550674,151.16,151.13,12.61456779]
[1749439793456,6.61550674,151.16,151.12,0.14216157]
[1749439793666,6.61550674,151.16,151.13,12.61456779]
[1749439794040,6.61550674,151.16,151.12,0.14216157]
[1749439794336,6.61550674,151.16,151.12,12.75672936]
[1749439795764,11.48225739,151.16,151.12,12.75672936]
[1749439796057,6.61550674,151.16,151.12,12.75672936]
[1749439796564,11.48225739,151.16,151.12,12.75672936]
[1749439797449,6.61550674,151.16,151.12,12.75672936]
[1749439797964,11.48225739,151.16,151.12,12.75672936]
[1749439798133,11.48225739,151.16,151.13,12.61456779]
[1749439798853,6.61550674,151.16,151.13,12.61456779]
[1749439800552,11.48225739,151.16,151.13,12.61456779]
[1749439800749,6.61550674,151.16,151.13,12.61456779]
[1749439801070,25.26384292,151.19,151.15,12.61456779]
[1749439801373,25.26384292,151.19,151.18,12.61456779]
[1749439802245,30.15380965,151.19,151.16,12.61456779]
[1749439802445,30.15380965,151.19,151.12,0.14216157]
[1749439802446,59.30386259,151.19,151.12,0.14216157]
[1749439802664,46.6892948,151.19,151.16,12.61456779]
[1749439802864,25.26384292,151.19,151.17,12.61456779]
[1749439803247,25.26384292,151.19,151.16,12.61456779]
[1749439803862,30.15466432,151.19,151.15,12.61456779]
[1749439804377,25.26384292,151.19,151.16,12.61456779]
[1749439804867,25.26384292,151.19,151.17,12.61456779]
[1749439805661,6.61419406,151.19,151.18,12.61456779]
[1749439807453,6.61419406,151.19,151.17,12.61456779]
[1749439810381,6.61419406,151.19,151.18,12.61456779]
[1749439810590,6.61419406,151.19,151.15,1.65046157]
[1749439810875,6.61419406,151.19,151.17,12.61456779]
[1749439811469,18.64964886,151.18,151.15,12.61456779]
[1749439812841,6.61506912,151.17,151.15,12.61456779]
[1749439815259,6.61506912,151.17,151.14,12.61456779]
[1749439815454,31.26421665,151.16,151.12,12.61456779]
[1749439815670,12.61456779,151.15,151.11,12.61456779]
[1749439815884,36.15961369,151.16,151.11,12.61456779]
[1749439816048,76.73961369,151.16,151.12,12.61456779]
[1749439816248,4.89539704,151.15,151.12,12.61456779]
[1749439816869,71.84421665,151.16,151.12,12.61456779]
[1749439816870,6.61638216,151.14,151.12,12.61456779]
[1749439818774,6.61594442,151.15,151.12,12.61456779]
[1749439824686,6.61594442,151.15,151.13,12.61456779]
[1749439824986,47.19565898,151.16,151.14,12.61456779]
[1749439825169,47.19565898,151.16,151.12,0.14216157]
[1749439825170,47.19565898,151.16,151.15,12.61456779]
[1749439827864,6.61565898,151.16,151.15,12.61456779]
[1749439828062,26.0,151.17,151.15,12.61456779]
[1749439828063,32.61517977,151.17,151.15,12.61456779]
[1749439828883,37.51216799,151.17,151.14,12.61456779]
[1749439829083,32.61517977,151.17,151.14,12.61456779]
[1749439829581,37.51216799,151.17,151.14,12.61456779]
[1749439829786,32.61517977,151.17,151.14,12.61456779]
[1749439829975,32.61517977,151.17,151.15,12.61456779]
[1749439832473,37.51440369,151.17,151.15,12.61456779]
[1749439832683,32.61517977,151.17,151.15,12.61456779]
[1749439832872,37.51440369,151.17,151.15,12.61456779]
[1749439833075,32.61517977,151.17,151.15,12.61456779]
[1749439833281,37.51440369,151.17,151.15,12.61456779]
[1749439833485,32.61517977,151.17,151.15,12.61456779]
[1749439833987,32.61517977,151.17,151.14,12.61456779]
[1749439834387,37.51352014,151.17,151.14,12.61456779]
[1749439834690,32.61517977,151.17,151.14,12.61456779]
[1749439834889,37.51355008,151.17,151.14,12.61456779]
[1749439835200,32.61517977,151.17,151.14,12.61456779]
[1749439835404,32.61517977,151.17,151.15,12.61456779]
[1749439836697,32.61517977,151.17,151.14,12.61456779]
[1749439837699,4.89792224,151.16,151.14,12.61456779]
[1749439838084,6.61594442,151.15,151.14,12.61456779]
[1749439838680,6.61594442,151.15,151.13,12.61456779]
[1749439839381,11.51386666,151.15,151.13,12.61456779]
[1749439839591,6.61594442,151.15,151.13,12.61456779]
[1749439839799,11.51386666,151.15,151.13,12.61456779]
[1749439839988,6.61594442,151.15,151.13,12.61456779]
[1749439840188,11.51386666,151.15,151.13,12.61456779]
[1749439840389,6.61594442,151.15,151.13,12.61456779]
[1749439840596,11.51386666,151.15,151.11,0.14216157]
[1749439840806,6.61594442,151.15,151.13,12.61456779]
[1749439840994,11.51386666,151.15,151.13,12.61456779]
[1749439841198,6.61594442,151.15,151.13,12.61456779]
[1749439841500,11.51386666,151.15,151.13,12.61456779]
[1749439841692,6.61594442,151.15,151.13,12.61456779]
[1749439841895,11.51386666,151.15,151.13,12.61456779]
[1749439842095,6.61594442,151.15,151.13,12.61456779]
[1749439842287,11.51386666,151.15,151.13,12.61456779]
[1749439842484,6.61594442,151.15,151.13,12.61456779]
[1749439842802,11.51386666,151.15,151.13,12.61456779]
[1749439842995,6.61594442,151.15,151.13,12.61456779]
[1749439843178,11.51386666,151.15,151.13,8.07264414]
[1749439843497,6.61594442,151.15,151.13,8.07264414]
[1749439843703,11.51386666,151.15,151.13,8.07264414]
[1749439843908,6.61594442,151.15,151.13,8.07264414]
[1749439844084,11.51386666,151.15,151.13,8.07264414]
[1749439844284,6.61594442,151.15,151.13,8.07264414]
[1749439845406,6.61550674,151.16,151.13,8.07264414]
[1749439845904,6.61550674,151.16,151.14,8.07264414]
[1749439846511,6.61550674,151.16,151.15,8.07264414]
[1749439846690,6.61550674,151.16,151.14,8.07264414]
[1749439847008,11.51392634,151.16,151.13,8.07264414]
[1749439848903,6.61550674,151.16,151.13,8.07264414]
[1749439849093,11.51530249,151.16,151.13,8.07264414]
[1749439849909,28.05524481,151.16,151.12,8.07264414]
[1749439850105,28.05524481,151.16,151.1,8.07264414]
[1749439850106,8.07264414,151.14,151.1,8.07264414]
[1749439850409,4.90038171,151.13,151.1,0.14216157]
[1749439850618,8.07264414,151.13,151.09,8.07264414]
[1749439850787,8.07264414,151.13,151.1,0.14216157]
[1749439851122,12.97233502,151.12,151.08,8.07264414]
[1749439851414,8.07264414,151.12,151.08,8.07264414]
[1749439851593,8.07264414,151.1,151.04,12.1866]
[1749439851793,95.87181043,151.14,151.07,8.07264414]
[1749439851794,6.61857171,151.09,151.07,8.07264414]
[1749439852983,6.61813368,151.1,151.07,8.07264414]
[1749439853182,6.61813368,151.1,151.07,12.6226863]
[1749439854398,6.61813368,151.1,151.06,0.14216157]
[1749439854613,6.61813368,151.1,151.07,12.6226863]
[1749439855694,18.64964886,151.09,151.04,1.6666]
[1749439855987,12.6226863,151.07,151.03,12.6226863]
[1749439856187,18.64964886,151.07,151.03,12.6226863]
[1749439857191,6.61988613,151.06,151.04,12.6226863]
[1749439857420,63.7626863,151.09,151.05,12.6226863]
[1749439857421,51.14,151.09,151.05,12.6226863]
[1749439858220,6.61900979,151.08,151.05,12.6226863]
[1749439861226,6.61813368,151.1,151.07,12.6226863]
[1749439861382,19.24081998,151.1,151.06,12.6226863]
[1749439861713,11.50154012,151.1,151.06,12.6226863]
[1749439861899,24.12422642,151.1,151.06,12.6226863]
[1749439862398,31.27233516,151.08,151.04,12.6226863]
[1749439863199,31.27233516,151.08,151.0,1.6259]
[1749439863404,31.27233516,151.06,151.02,12.6226863]
[1749439863717,18.64964886,151.06,151.03,12.6226863]
[1749439863901,6.61944793,151.07,151.04,12.6226863]
[1749439866408,6.61944793,151.07,151.01,0.14216157]
[1749439866600,6.61944793,151.07,151.03,12.6226863]
[1749439866932,6.61944793,151.07,151.04,12.6226863]
[1749439867913,6.61906937,151.08,151.05,12.6226863]
[1749439868215,18.64964886,151.1,151.07,12.6226863]
[1749439868721,25.26778254,151.1,151.07,12.6226863]
[1749439870392,37.89046884,151.1,151.06,12.6226863]
[1749439870605,25.26778254,151.1,151.06,12.6226863]
[1749439870804,37.89046884,151.1,151.06,12.6226863]
[1749439872817,25.26778254,151.1,151.06,12.6226863]
[1749439873023,37.89046884,151.1,151.06,12.6226863]
[1749439875099,25.26778254,151.1,151.06,12.6226863]
[1749439875300,25.26778254,151.1,151.07,12.6226863]
[1749439876098,6.61813368,151.1,151.07,12.6226863]
[1749439876414,6.61813368,151.1,151.08,12.6226863]
[1749439877704,17.13787248,151.11,151.08,12.6226863]
[1749439878120,156.66,151.15,151.1,12.6226863]
[1749439878306,10.56,151.15,151.13,12.6226863]
[1749439878500,36.56,151.15,151.13,12.6226863]
[1749439879202,6.61638216,151.14,151.13,12.6226863]
[1749439881426,18.64964886,151.13,151.1,12.6226863]
[1749439881733,18.64964886,151.11,151.08,12.6226863]
[1749439882416,40.66310727,151.14,151.1,12.6226863]
[1749439882619,18.64964886,151.13,151.1,12.6226863]
[1749439883402,6.6172578,151.12,151.1,12.6226863]
[1749439884604,6.6172578,151.12,151.07,0.14216157]
[1749439884808,19.2399441,151.12,151.08,12.6226863]
[1749439885004,6.6172578,151.12,151.09,12.6226863]
[1749439890222,6.6172578,151.12,151.1,2.47541469]
[1749439890428,6.6172578,151.12,151.09,12.6226863]
[1749439890608,6.6172578,151.12,151.1,2.47543968]
[1749439890809,6.6172578,151.12,151.09,12.6226863]
[1749439892036,6.6172578,151.12,151.1,2.47551464]
[1749439892237,6.6172578,151.12,151.09,12.6226863]
[1749439892535,6.6172578,151.12,151.1,2.47551464]
[1749439892741,6.6172578,151.12,151.09,12.6226863]
[1749439893242,6.6172578,151.12,151.1,2.47548933]
[1749439893541,6.6172578,151.12,151.09,12.6226863]
[1749439893840,6.6172578,151.12,151.1,15.09817563]
[1749439894137,6.6172578,151.12,151.1,12.6226863]
[1749439895237,6.6172578,151.12,151.07,0.14216157]
[1749439895425,6.6172578,151.12,151.09,0.14216157]
[1749439895627,18.64964886,151.11,151.08,12.6226863]
[1749439895827,18.64964886,151.11,151.09,2.47471176]
[1749439896029,18.64964886,151.11,151.08,12.6226863]
[1749439896231,18.64964886,151.11,151.09,2.47467544]
[1749439896432,18.64964886,151.11,151.09,12.6226863]
[1749439896634,6.6172578,151.12,151.09,12.6226863]
[1749439896832,6.6172578,151.12,151.1,2.47439506]
[1749439897030,6.6172578,151.12,151.09,12.6226863]
[1749439897235,6.61681995,151.13,151.1,15.09656637]
[1749439897542,6.61681995,151.13,151.1,12.6226863]
[1749439897729,6.61681995,151.13,151.11,12.6226863]
[1749439898743,29.20964886,151.15,151.12,15.09620652]
[1749439899039,35.82576784,151.15,151.13,12.6226863]
[1749439900952,10.56,151.15,151.13,12.6226863]
[1749439902936,25.26471798,151.17,151.14,12.6226863]
[1749439903147,25.26471798,151.17,151.15,12.6226863]
[1749439903330,6.61474236,151.18,151.16,12.6226863]
[1749439903726,17.17437579,151.19,151.17,12.6226863]
[1749439905653,17.17437579,151.19,151.16,12.6226863]
[1749439908433,29.79706209,151.19,151.15,12.6226863]
[1749439909561,17.17437579,151.19,151.15,12.6226863]